bitfinex-derivatives/quotes_BTCF0:USTF0_20251103
["timestamp","ask_amount","ask_price","bid_price","bid_amount"]
[1762206695452,0.05788,107030.0,107020.0,0.4614074]
[1762206696555,0.1543287,107030.0,107020.0,0.4614074]
[1762206696758,0.1543287,107030.0,107020.0,0.4751974]
[1762206697355,0.06088,107030.0,107020.0,0.4751974]
[1762206698056,0.1543288,107030.0,107020.0,0.4614074]
[1762206698256,0.04741,107030.0,107020.0,0.4751974]
[1762206698452,0.06088,107030.0,107020.0,0.4751974]
[1762206698658,0.1543288,107030.0,107020.0,0.4751974]
[1762206699260,0.04741,107030.0,107020.0,0.4751974]
[1762206700458,0.1408588,107030.0,107020.0,0.4751974]
[1762206701563,0.5151288,107030.0,107020.0,0.4751974]
[1762206701857,0.64622483,107030.0,107020.0,0.4614074]
[1762206702252,0.64622483,107030.0,107020.0,0.4751974]
[1762206703858,0.64622483,107030.0,107020.0,0.4614074]
[1762206704463,0.64622483,107030.0,107020.0,0.4751874]
[1762206704653,0.64622483,107030.0,107020.0,0.1381674]
[1762206704854,0.64622483,107030.0,107020.0,0.04471]
[1762206705054,0.64622483,107030.0,107020.0,0.1381675]
[1762206705262,0.64622483,107030.0,107020.0,0.04471]
[1762206706868,0.64622483,107030.0,107020.0,0.1381675]
[1762206710967,0.64622483,107030.0,107020.0,0.04471]
[1762206711773,0.64622483,107030.0,107020.0,0.02156]
[1762206711970,0.64622483,107030.0,107020.0,0.04286]
[1762206712375,0.64622483,107030.0,107020.0,0.1363175]
[1762206715475,0.64522483,107030.0,107020.0,0.1363175]
[1762206720079,0.66764364,107030.0,107020.0,0.1363175]
[1762206720676,0.1496475,107020.0,107010.0,0.07162518]
[1762206720875,0.1496562,107010.0,107000.0,0.09292518]
[1762206721181,0.1496649,107000.0,106990.0,0.5235304]
[1762206721478,0.28076093,107000.0,106990.0,0.5235304]
[1762206722084,0.02012,107000.0,106990.0,0.5235304]
[1762206722269,0.1135949,107000.0,106990.0,0.5235304]
[1762206722671,0.64056093,107000.0,106990.0,0.0931402]
[1762206722980,0.62714093,107000.0,106990.0,0.2004039]
[1762206723371,0.63929093,107000.0,106990.0,0.1866239]
[1762206723573,0.62714093,107000.0,106990.0,0.2024039]
[1762206724385,0.63632711,107000.0,106990.0,0.2024039]
[1762206725082,0.64847711,107000.0,106990.0,0.2024039]
[1762206725282,0.64847711,107000.0,106990.0,0.1382637]
[1762206726172,0.64847711,107000.0,106990.0,0.002]
[1762206726373,0.70976015,107000.0,106990.0,0.0954837]
[1762206726679,0.69761015,107000.0,106990.0,0.1520437]
[1762206726985,0.41175618,107000.0,106990.0,0.1520437]
[1762206727667,0.42517618,107000.0,106990.0,0.1520437]
[1762206728075,0.42517618,107000.0,106990.0,0.1382637]
[1762206728272,0.51865108,107000.0,106990.0,0.1382637]
[1762206729783,0.40257,107000.0,106990.0,0.1520437]
[1762206730080,0.4960449,107000.0,106990.0,0.1520437]
[1762206730275,0.40257,107000.0,106990.0,0.1520437]
[1762206730479,0.41599,107000.0,106990.0,0.1520437]
[1762206730683,0.41599,107000.0,106990.0,0.1382637]
[1762206730883,0.5094649,107000.0,106990.0,0.1382637]
[1762206735079,0.40257,107000.0,106990.0,0.1514237]
[1762206735293,0.41822,107010.0,107000.0,0.1500556]
[1762206735489,0.41822,107010.0,107000.0,0.4732156]
[1762206735680,0.044,107010.0,107000.0,0.4825084]
[1762206735981,0.044,107010.0,107000.0,0.8936686]
[1762206736186,0.044,107010.0,107000.0,0.8843758]
[1762206741991,0.044,107010.0,107000.0,0.5235758]
[1762206742184,0.1374669,107010.0,107000.0,0.5235758]
[1762206742384,0.4982669,107010.0,107000.0,0.5235758]
[1762206742579,0.1374669,107010.0,107000.0,0.5235758]
[1762206742780,0.044,107010.0,107000.0,0.5235758]
[1762206743788,0.044,107010.0,107000.0,0.8843758]
[1762206744293,0.044,107010.0,107000.0,0.5235758]
[1762206745794,0.1374665,107010.0,107000.0,0.5235758]
[1762206746796,0.5104565,107010.0,107000.0,0.2004158]
[1762206746990,0.70283557,107010.0,107000.0,0.5103758]
[1762206747495,0.70283557,107010.0,107000.0,0.4169002]
[1762206747792,0.70283557,107010.0,107000.0,0.5103755]
[1762206748392,0.72030256,107010.0,107000.0,0.5103755]
[1762206748700,0.61537953,107010.0,107000.0,0.5103755]
[1762206749199,0.61537953,107010.0,107000.0,0.4169002]
[1762206749595,0.61537953,107010.0,107000.0,0.5103755]
[1762206749792,0.61537953,107010.0,107000.0,0.0937802]
[1762206749793,1.04342256,107010.0,107000.0,0.0937802]
[1762206749993,1.06591553,107010.0,107000.0,0.04342]
[1762206751502,0.1504356,107000.0,106990.0,0.0938802]
[1762206751701,0.61615863,107000.0,106990.0,0.0938802]
[1762206752500,0.61615863,107000.0,106990.0,0.0713702]
[1762206752694,0.61615863,107000.0,106990.0,0.0938802]
[1762206752891,0.61615863,107000.0,106990.0,0.0948802]
[1762206754401,0.61615863,107000.0,106990.0,0.1883645]
[1762206754603,0.61615863,107000.0,106990.0,0.0948802]
[1762206755302,0.61615863,107000.0,106990.0,0.1883645]
[1762206756100,0.5112356,107000.0,106990.0,0.2016045]
[1762206756311,0.4044,107000.0,106990.0,0.2016045]
[1762206756506,0.4044,107000.0,106990.0,0.30652753]
[1762206756697,0.4044,107000.0,106990.0,0.2016045]
[1762206759696,0.61615863,107000.0,106990.0,0.1883645]
[1762206764304,0.41776,107000.0,106990.0,0.2016045]
[1762206764505,0.61615873,107000.0,106990.0,0.2016045]
[1762206764802,0.61615873,107000.0,106990.0,0.1883646]
[1762206765407,0.61615873,107000.0,106990.0,0.5114846]
[1762206766414,0.61615873,107000.0,106990.0,0.1883646]
[1762206766813,0.61615873,107000.0,106990.0,0.5114846]
[1762206770214,0.52268303,107000.0,106990.0,0.5114846]
[1762206770516,0.52268303,107000.0,106990.0,0.1883646]
[1762206770711,0.52268303,107000.0,106990.0,0.5114846]
[1762206771518,0.61615863,107000.0,106990.0,0.5114846]
[1762206771720,0.50932303,107000.0,106990.0,0.5248146]
[1762206771915,0.0436,107000.0,106990.0,0.62973763]
[1762206772709,0.0436,107000.0,106990.0,0.5248146]
[1762206772913,0.0436,107000.0,106990.0,0.8856146]
[1762206774815,0.0436,107000.0,106990.0,0.8352544]
[1762206775616,0.06611151,107000.0,106990.0,0.88555167]
[1762206778120,0.06611151,107000.0,106990.0,0.90248667]
[1762206778121,0.0436,107000.0,106990.0,0.90248667]
[1762206782620,0.40535,107020.0,107010.0,0.1516863]
[1762206782813,0.37427,107030.0,107020.0,0.1161675]
[1762206783020,0.42791176,107030.0,107020.0,0.20197605]
[1762206784019,0.42991176,107030.0,107020.0,0.20197605]
[1762206784226,0.61881173,107030.0,107020.0,0.18864605]
[1762206784421,0.61881173,107030.0,107020.0,0.20197605]
[1762206784722,0.5138887,107030.0,107020.0,0.20197605]
[1762206785324,0.61881173,107030.0,107020.0,0.20197605]
[1762206785821,0.40635,107030.0,107020.0,0.20197605]
[1762206786124,0.40635,107030.0,107020.0,0.1516775]
[1762206786327,0.51119944,107030.0,107020.0,0.1516775]
[1762206787827,0.60464814,107030.0,107020.0,0.1516775]
[1762206788528,0.61390155,107030.0,107020.0,0.1516775]
[1762206788724,0.62699155,107030.0,107020.0,0.1516775]
[1762206789030,0.51119944,107030.0,107020.0,0.1516775]
[1762206789422,0.001,107030.0,107020.0,0.77247493]
[1762206789824,0.001,107030.0,107020.0,0.78924435]
[1762206790128,1.87662,107050.0,107040.0,0.1487301]
[1762206790129,0.04755,107050.0,107040.0,0.1487301]
[1762206790324,0.00929084,107070.0,107060.0,0.1516426]
[1762206790520,0.1379607,107080.0,107070.0,0.05822]
[1762206790722,0.61670014,107080.0,107070.0,0.05822]
[1762206790920,0.72154958,107080.0,107070.0,0.04489]
[1762206791125,0.4987607,107080.0,107070.0,0.05822]
[1762206791429,0.70845958,107080.0,107070.0,0.05822]
[1762206791730,0.72154958,107080.0,107070.0,0.05822]
[1762206792028,0.73066689,107080.0,107070.0,0.1516338]
[1762206792421,0.73166689,107080.0,107070.0,0.05822]
[1762206793717,0.73166689,107080.0,107070.0,0.1516338]
[1762206794827,0.73166689,107080.0,107070.0,0.05822]
[1762206796528,0.73166689,107080.0,107070.0,0.04489]
[1762206796733,0.0934225,107060.0,107050.0,0.1067554]
[1762206797035,0.34711138,107060.0,107050.0,0.4734354]
[1762206797526,0.72062138,107060.0,107050.0,0.37997]
[1762206798129,0.72062138,107060.0,107050.0,0.38097]
[1762206798526,0.82547082,107060.0,107050.0,0.04472]
[1762206798726,0.72062138,107060.0,107050.0,0.02363]
[1762206799621,0.72062138,107060.0,107050.0,0.04372]
[1762206799826,0.1447787,107030.0,107020.0,0.09381543]
[1762206800026,0.1447787,107030.0,107010.0,0.4728161]
[1762206800027,0.1501575,107020.0,107010.0,0.4728161]
[1762206800226,0.35985638,107020.0,107010.0,0.4728161]
[1762206800536,0.64207396,107020.0,107010.0,0.4728161]
[1762206800727,0.28127396,107020.0,107010.0,0.4728161]
[1762206800923,0.64207396,107020.0,107010.0,0.4728161]
[1762206801126,0.65132512,107020.0,107010.0,0.36664]
[1762206801434,0.97424512,107020.0,107010.0,0.36664]
[1762206801628,0.97424512,107020.0,107010.0,0.04372]
[1762206804938,0.97424512,107020.0,107010.0,0.1371862]
[1762206806439,0.4175,107020.0,107010.0,0.1498962]
[1762206806634,0.5109575,107020.0,107010.0,0.1498962]
[1762206807237,0.8339175,107020.0,107010.0,0.1498962]
[1762206807836,0.74046,107020.0,107010.0,0.1498962]
[1762206808338,0.0567,107020.0,107010.0,0.1498962]
[1762206808536,0.04399,107020.0,107010.0,0.1498962]
[1762206809438,0.05334913,107020.0,107010.0,0.1498962]
[1762206809632,0.04399,107020.0,107010.0,0.1498962]
[1762206811243,0.41786,107020.0,107010.0,0.1509062]
[1762206812138,0.5113174,107020.0,107010.0,0.1509062]
[1762206813230,0.04399,107020.0,107010.0,0.4739062]
[1762206820543,0.14885875,107020.0,107010.0,0.4739062]
[1762206821846,0.24231615,107020.0,107010.0,0.4739062]
[1762206822039,0.14885875,107020.0,107010.0,0.4739062]
[1762206822234,0.24231615,107020.0,107010.0,0.4739062]
[1762206822636,0.14885875,107020.0,107010.0,0.4739062]
[1762206823047,0.04399,107020.0,107010.0,0.4739062]
[1762206823248,0.14885875,107020.0,107010.0,0.4739062]
[1762206824638,0.24231615,107020.0,107010.0,0.4739062]
[1762206825053,0.14885875,107020.0,107010.0,0.4739062]
[1762206828249,0.14885875,107020.0,107010.0,0.52400163]
[1762206828552,0.3608,107030.0,107010.0,0.72233658]
[1762206828751,0.50834875,107030.0,107020.0,0.1524274]
[1762206829044,0.50834875,107030.0,107020.0,0.20252283]
[1762206829251,0.53086659,107030.0,107020.0,0.20252283]
[1762206830451,0.60179745,107030.0,107020.0,0.20252283]
[1762206830650,0.50834875,107030.0,107020.0,0.20252283]
[1762206831146,0.14754875,107030.0,107020.0,0.56332283]
[1762206831651,0.24099745,107030.0,107020.0,0.56332283]
[1762206831843,0.14754875,107030.0,107020.0,0.56332283]
[1762206833250,0.26316321,107030.0,107020.0,0.56332283]
[1762206833462,0.26316321,107030.0,107020.0,0.09587543]
[1762206833640,0.0934574,107020.0,107010.0,0.14355453]
[1762206833843,0.3585249,107020.0,107010.0,0.51229453]
[1762206834146,0.3458749,107020.0,107010.0,0.52548453]
[1762206834558,0.2524175,107020.0,107010.0,0.52548453]
[1762206834852,0.24100625,107020.0,107010.0,0.52548453]
[1762206835449,0.2524175,107020.0,107010.0,0.52548453]
[1762206835649,0.14754875,107020.0,107010.0,0.99115328]
[1762206835950,0.12612875,107020.0,107010.0,0.99115328]
[1762206836153,0.14754875,107020.0,107010.0,0.94105785]
[1762206836744,0.14754875,107020.0,107010.0,0.8361891]
[1762206837747,0.14754875,107020.0,107010.0,0.4753891]
[1762206837748,0.358525,107020.0,107010.0,0.4753891]
[1762206838057,0.358525,107020.0,107010.0,0.5256658]
[1762206838253,0.24100625,107020.0,107010.0,0.5256658]
[1762206838453,0.345875,107020.0,107010.0,0.5256658]
[1762206838954,0.24100625,107020.0,107010.0,0.5256658]
[1762206839157,0.345875,107020.0,107010.0,0.5256658]
[1762206839862,0.358525,107020.0,107010.0,0.0960567]
[1762206840050,0.719325,107020.0,107010.0,0.1895229]
[1762206840958,0.719325,107020.0,107010.0,0.2027129]
[1762206841253,0.719325,107020.0,107010.0,0.0502767]
[1762206841557,1.06481459,107020.0,107010.0,0.0502767]
[1762206841758,1.6487962,107010.0,107000.0,0.51257872]
[1762206841957,2.2193337,107010.0,107000.0,0.05036992]
[1762206842256,2.24186249,107010.0,107000.0,0.05036992]
[1762206842856,2.24186249,107010.0,107000.0,9.322e-05]
[1762206843359,2.24186249,107010.0,107000.0,0.00109322]
[1762206844046,2.24186249,107010.0,107000.0,0.11761822]
[1762206844952,2.24186249,107010.0,107000.0,0.14034822]
[1762206845147,1.93865879,107010.0,107000.0,0.25840697]
[1762206845349,2.02099875,107010.0,107000.0,0.25840697]
[1762206845554,2.00834875,107010.0,107000.0,0.25840697]
[1762206845956,1.64754875,107010.0,107000.0,0.58136697]
[1762206846153,1.64754875,107010.0,107000.0,0.99244367]
[1762206846352,1.54268,107010.0,107000.0,0.88757492]
[1762206846961,1.54268,107010.0,107000.0,0.52677492]
[1762206847156,1.54268,107010.0,107000.0,0.47649822]
[1762206848046,2.0095962,107010.0,107000.0,0.14034822]
[1762206848247,2.20187709,107010.0,107000.0,0.09456812]
[1762206848452,2.20187709,107010.0,107000.0,0.14034812]
[1762206849152,2.0095962,107010.0,107000.0,0.14034812]
[1762206850252,2.0095962,107010.0,107000.0,0.04687322]
[1762206850655,2.20187709,107010.0,107000.0,0.14034812]
[1762206853963,2.20187709,107010.0,107000.0,0.02414322]
[1762206854163,2.20187709,107010.0,107000.0,0.14034822]
[1762206861362,2.20187709,107010.0,107000.0,0.11761822]
[1762206862158,2.20187709,107010.0,107000.0,0.14012822]
[1762206864366,2.22438452,107010.0,107000.0,0.14012822]
[1762206866068,2.03210363,107010.0,107000.0,0.14012822]
[1762206867162,2.0321158,107010.0,107000.0,0.14012822]
[1762206868360,2.13701878,107010.0,107000.0,0.14012822]
[1762206874270,2.13701878,107010.0,107000.0,0.11761822]
[1762206875274,2.13701878,107010.0,107000.0,0.13911822]
[1762206876273,2.13701878,107010.0,107000.0,0.11761822]
[1762206876667,2.13701878,107010.0,107000.0,0.13911822]
[1762206877767,0.1503737,106990.0,106980.0,0.07015251]
[1762206877968,1.34755193,106990.0,106980.0,0.00308454]
[1762206878168,1.32246653,106990.0,106980.0,0.09657694]
[1762206878365,1.32246653,106990.0,106980.0,0.14035694]
[1762206878366,0.44035985,106990.0,106980.0,0.14035694]
[1762206878569,0.07955985,106990.0,106980.0,0.15309694]
[1762206878775,0.05698322,106990.0,106980.0,0.15309694]
[1762206878973,0.05698322,106990.0,106980.0,0.15609694]
[1762206879165,0.05698322,106990.0,106980.0,0.51689694]
[1762206879769,0.04415322,106990.0,106980.0,0.51689694]
[1762206880362,0.04515322,106990.0,106980.0,0.51389694]
[1762206882576,0.13863682,106990.0,106980.0,0.51389694]
[1762206882973,0.2563698,106990.0,106980.0,0.15309694]
[1762206883173,0.26556735,106990.0,106980.0,0.15309694]
[1762206885679,0.17208375,106990.0,106980.0,0.15309694]
[1762206886182,0.1500562,106990.0,106980.0,0.15309694]
[1762206886382,0.04515322,106990.0,106980.0,0.15309694]
[1762206888277,0.04515322,106990.0,106980.0,0.61879992]
[1762206888484,0.02212322,106990.0,106980.0,0.61879992]
[1762206888778,0.02212322,106990.0,106980.0,0.68586789]
[1762206888976,0.41697,107010.0,107000.0,0.1495949]
[1762206889171,0.43960321,107010.0,107000.0,0.1495949]
[1762206889776,0.05617,107010.0,107000.0,0.1495949]
[1762206890179,0.06551418,107010.0,107000.0,0.1495949]
[1762206890379,0.06651418,107010.0,107000.0,0.1495949]
[1762206890580,0.05717,107010.0,107000.0,0.1495949]
[1762206891588,0.1506362,107010.0,107000.0,0.1495949]
[1762206891975,0.04452,107010.0,107000.0,0.1495949]
[1762206892278,0.25551918,107010.0,107000.0,0.1495949]
[1762206893384,0.25551918,107010.0,107000.0,0.1374849]
[1762206894186,0.26473329,107010.0,107000.0,0.1374849]
[1762206895384,0.16205298,107010.0,107000.0,0.1507749]
[1762206895982,0.25551918,107010.0,107000.0,0.1507749]
[1762206896783,0.26473609,107010.0,107000.0,0.1507749]
[1762206897177,0.17126989,107010.0,107000.0,0.1507749]
[1762206897387,0.26473609,107010.0,107000.0,0.1507749]
[1762206898180,0.001,107010.0,107000.0,0.61647788]
[1762206898486,0.40432,107030.0,107020.0,0.1496175]
[1762206898781,0.04352,107030.0,107020.0,0.8333375]
[1762206899484,0.04352,107030.0,107020.0,0.88348166]
[1762206900585,0.69635,107050.0,107020.0,0.88348166]
[1762206900779,0.42673697,107050.0,107040.0,0.15074]
[1762206900980,0.04352,107050.0,107040.0,0.83442]
[1762206901180,0.1578747,107050.0,107040.0,0.47362]
[1762206901385,0.624736,107050.0,107040.0,0.38018]
[1762206901682,0.624736,107050.0,107040.0,0.04401]
[1762206901987,0.14959,107040.0,107030.0,0.41703416]
[1762206902187,0.61529298,107040.0,107030.0,0.4603387]
[1762206902394,0.61529298,107040.0,107030.0,0.4736287]
[1762206902682,0.61529298,107040.0,107030.0,0.0573]
[1762206902986,0.72019596,107040.0,107030.0,0.04401]
[1762206903484,0.1495987,107030.0,107020.0,0.02197]
[1762206903677,1.6496074,107020.0,107010.0,0.52264986]
[1762206903873,1.6496074,107020.0,107010.0,0.51049986]
[1762206903874,1.75451038,107020.0,107010.0,0.51049986]
[1762206904080,1.75451038,107020.0,107010.0,0.4603557]
[1762206904285,1.75451038,107020.0,107010.0,0.1374757]
[1762206905580,0.1496162,107010.0,107000.0,0.88455386]
[1762206905776,0.25251918,107010.0,107000.0,0.51046386]
[1762206905980,0.05615,107010.0,107000.0,0.4603197]
[1762206906180,0.25451918,107010.0,107000.0,0.8211197]
[1762206906594,0.16105298,107010.0,107000.0,0.8211197]
[1762206906789,0.25451918,107010.0,107000.0,0.8344097]
[1762206907390,0.26385883,107010.0,107000.0,0.8344097]
[1762206908281,0.15895585,107010.0,107000.0,0.8344097]
[1762206908484,0.25451349,107010.0,107000.0,0.8344097]
[1762206908788,0.61531349,107010.0,107000.0,0.4603197]
[1762206908987,0.1369949,107000.0,106990.0,0.88456356]
[1762206909176,0.35941948,107000.0,106990.0,0.88456356]
[1762206911593,0.26594458,107000.0,106990.0,0.88456356]
[1762206912392,0.14841729,107000.0,106990.0,0.88456356]
[1762206913590,0.14841729,107000.0,106990.0,0.98946085]
[1762206913791,0.80116729,107010.0,107000.0,0.0934749]
[1762206913990,0.93815349,107010.0,107000.0,0.1507749]
[1762206914293,0.61531349,107010.0,107000.0,0.1507749]
[1762206914495,0.52184729,107010.0,107000.0,0.1507749]
[1762206914790,0.16104729,107010.0,107000.0,0.1507749]
[1762206915094,0.16104729,107010.0,107000.0,0.5115749]
[1762206915697,0.16204729,107010.0,107000.0,0.5115749]
[1762206915996,0.25551349,107010.0,107000.0,0.5115749]
[1762206916702,0.61631349,107010.0,107000.0,0.1507749]
[1762206917091,0.72121078,107010.0,107000.0,0.04401]
[1762206917598,0.72121078,107010.0,107000.0,0.1374849]
[1762206918091,0.61631349,107010.0,107000.0,0.1374849]
[1762206922993,0.25551349,107010.0,107000.0,0.1374849]
[1762206924396,0.04452,107010.0,107000.0,0.61713219]
[1762206924593,0.02324,107010.0,107000.0,0.72202948]
[1762206924799,0.001,107010.0,107000.0,0.77217364]
[1762206924993,0.14860729,107030.0,107020.0,0.1495975]
[1762206925190,0.14860729,107030.0,107020.0,0.93813479]
[1762206925586,1.64860729,107030.0,107020.0,0.8332375]
[1762206927198,1.64960729,107030.0,107020.0,0.8332375]
[1762206928800,1.74305599,107030.0,107020.0,0.8332375]
[1762206930290,1.64960729,107030.0,107020.0,0.8332375]
[1762206930793,1.74305599,107030.0,107020.0,0.8332375]
[1762206930996,1.75394599,107030.0,107020.0,0.4724375]
[1762206931393,2.21964328,107030.0,107020.0,0.04545]
[1762206931590,2.21964328,107030.0,107020.0,0.1389074]
[1762206931895,2.21964328,107030.0,107010.0,0.51057446]
[1762206931896,0.1493274,107020.0,107010.0,0.51057446]
[1762206932197,0.71992198,107020.0,107010.0,0.51057446]
[1762206932396,0.71992198,107020.0,107010.0,0.52382446]
[1762206933297,0.71992198,107020.0,107010.0,0.20102446]
[1762206933500,0.71992198,107020.0,107010.0,0.18778036]
[1762206933694,0.71992198,107020.0,107010.0,0.09431416]
[1762206934795,0.71992198,107020.0,107010.0,0.18778036]
[1762206935900,0.71992198,107020.0,107010.0,0.07139416]
[1762206936196,0.71992198,107020.0,107010.0,0.02125]
[1762206936401,0.71992198,107020.0,107010.0,0.1147162]
[1762206936606,0.71992198,107020.0,107010.0,0.1376362]
[1762206937797,0.71992198,107020.0,107010.0,0.04417]
[1762206937994,0.1493362,107010.0,107000.0,0.52453326]
[1762206938196,0.25423349,107010.0,107000.0,0.52453326]
[1762206939203,0.16076729,107010.0,107000.0,0.52453326]
[1762206939402,0.04228,107010.0,107000.0,0.99123055]
[1762206939606,0.04228,107020.0,107010.0,0.1508862]
[1762206939795,1.54228,107020.0,107010.0,0.66670105]
[1762206939994,0.04228,107020.0,107010.0,0.66670105]
[1762206940508,2.21992208,107020.0,107010.0,0.09428756]
[1762206940804,2.21992208,107020.0,107010.0,0.4604362]
[1762206941205,2.24238678,107020.0,107010.0,0.4604362]
[1762206942006,2.21992208,107020.0,107010.0,0.1376362]
[1762206942205,2.24238659,107020.0,107010.0,0.1376362]
[1762206942408,2.16369982,107020.0,107010.0,0.1376362]
[1762206944507,2.16369982,107020.0,107000.0,0.84113766]
[1762206944708,0.28187411,107010.0,107000.0,0.18968766]
[1762206946209,0.28187411,107010.0,107000.0,0.19068766]
[1762206954213,0.64267411,107010.0,107000.0,0.09721756]
[1762206954412,0.64267411,107010.0,107000.0,0.05111756]
[1762206954613,0.1444437,106990.0,106980.0,0.14267124]
[1762206954816,0.63635151,106990.0,106980.0,0.14267124]
[1762206955915,0.63635151,106990.0,106980.0,0.14367124]
[1762206956122,0.27555151,106990.0,106980.0,0.14367124]
[1762206957016,0.28465207,106990.0,106980.0,0.14367124]
[1762206957910,0.04384,106990.0,106980.0,0.15720124]
[1762206958315,0.14654069,106990.0,106980.0,0.15720124]
[1762206960122,0.14654069,106990.0,106980.0,0.51800124]
[1762206961217,0.04384,106990.0,106980.0,0.51800124]
[1762206961421,0.1373237,106990.0,106980.0,0.51800124]
[1762206962020,0.1373237,106990.0,106980.0,0.15720124]
[1762206962226,0.1507837,106990.0,106980.0,0.14367124]
[1762206962428,0.28189151,106990.0,106980.0,0.14367124]
[1762206962624,0.28189151,106990.0,106980.0,0.02697454]
[1762206962830,0.66530428,106990.0,106980.0,0.00408454]
[1762206963128,0.64269151,106990.0,106980.0,0.00408454]
[1762206964121,0.64269151,106990.0,106980.0,0.02697454]
[1762206964322,0.72150466,106990.0,106980.0,0.02597454]
[1762206964518,0.72350466,106990.0,106980.0,0.02597454]
[1762206964721,0.52274598,106990.0,106980.0,0.14267694]
[1762206964922,0.62770646,106990.0,106980.0,0.14267694]
[1762206965628,0.73266694,106990.0,106980.0,0.14267694]
[1762206969322,0.73266694,106990.0,106980.0,0.00308454]
[1762206969531,0.73266694,106990.0,106980.0,0.04918454]
[1762206969842,0.73266694,106990.0,106980.0,0.14267694]
[1762206970336,0.62769976,106990.0,106980.0,0.14267694]
[1762206971428,0.62769976,106990.0,106980.0,0.00308454]
[1762206971622,0.52274598,106990.0,106980.0,0.00308454]
[1762206971826,0.62769976,106990.0,106980.0,0.14267694]
[1762206972026,0.62769976,106990.0,106980.0,0.11946694]
[1762206973239,0.62769976,106990.0,106980.0,0.14267694]
[1762206981041,0.62769976,106990.0,106980.0,0.11946694]
[1762206981240,0.65032059,106990.0,106980.0,0.02597454]
[1762206981632,0.65032059,106990.0,106980.0,0.04736454]
[1762206982141,0.65032059,106990.0,106980.0,0.14085704]
[1762206983037,0.1466312,106970.0,106960.0,0.4607248]
[1762206983238,0.27422449,106970.0,106960.0,0.4607248]
[1762206983645,0.63502449,106970.0,106960.0,0.4607248]
[1762206986250,0.63502449,106970.0,106960.0,0.4607299]
[1762206990654,0.63502449,106970.0,106960.0,0.1379299]
[1762206990860,0.63502449,106970.0,106960.0,0.04442]
[1762206991160,0.63502449,106970.0,106960.0,0.02303]
[1762206991455,0.63502449,106970.0,106960.0,0.1165399]
[1762206991656,0.63502449,106970.0,106960.0,0.02303]
[1762206992158,0.61238498,106970.0,106960.0,0.02303]
[1762206992358,0.63496854,106970.0,106960.0,0.02303]
[1762206993261,0.61238498,106970.0,106960.0,0.02303]
[1762206993463,0.61238498,106970.0,106960.0,0.1383699]
[1762206993856,0.61238498,106970.0,106960.0,0.04486]
[1762206995561,0.61238498,106970.0,106960.0,0.1383699]
[1762206996062,0.61238498,106970.0,106960.0,0.04486]
[1762206996462,0.61238498,106970.0,106960.0,0.1383699]
[1762206996859,0.61238498,106970.0,106960.0,0.04486]
[1762206997651,0.61238498,106970.0,106960.0,0.1383699]
[1762206997860,0.61238498,106970.0,106960.0,0.04486]
[1762206998063,0.61238498,106970.0,106960.0,0.1383699]
[1762206998261,0.40534,106970.0,106960.0,0.1513799]
[1762206998456,0.51029378,106970.0,106960.0,0.1513799]
[1762206999157,0.52364378,106970.0,106960.0,0.18856803]
[1762206999556,0.61714498,106970.0,106960.0,0.18856803]
[1762207000861,0.25634498,106970.0,106960.0,0.18856803]
[1762207001557,0.04454,106970.0,106960.0,0.88517803]
[1762207001761,0.04454,106970.0,106960.0,0.99013181]
[1762207001762,0.02202,106970.0,106960.0,0.99013181]
[1762207001961,0.04483,106970.0,106960.0,0.88517803]
[1762207003068,0.1383312,106970.0,106960.0,0.88517803]
[1762207003270,0.04483,106970.0,106960.0,0.88517803]
[1762207003564,0.02202,106970.0,106960.0,0.88517803]
[1762207003763,0.04483,106970.0,106960.0,0.88517803]
[1762207007381,0.04483,106970.0,106960.0,0.8349799]
[1762207010481,0.27632234,107000.0,106990.0,0.04468]
[1762207010781,0.27632234,107000.0,106990.0,0.1381636]
[1762207010782,0.27375266,107000.0,106990.0,0.1381636]
[1762207012079,0.27575266,107000.0,106990.0,0.1381636]
[1762207012476,0.27675266,107000.0,106990.0,0.1381636]
[1762207013078,0.63655266,107000.0,106990.0,0.04468]
[1762207013581,0.6459075,107000.0,106990.0,0.04468]
[1762207015780,0.1518337,106990.0,106980.0,0.5248776]
[1762207015984,0.61758748,106990.0,106980.0,0.5248776]
[1762207016686,0.61758748,106990.0,106980.0,0.43139]
[1762207017088,0.61758748,106990.0,106980.0,0.5248824]
[1762207017385,0.61758748,106990.0,106980.0,0.4747124]
[1762207017785,0.61858748,106990.0,106980.0,0.5248824]
[1762207017984,0.61858748,106990.0,106980.0,0.2020824]
[1762207018184,0.61858748,106990.0,106980.0,0.04468]
[1762207018573,0.1391024,106980.0,106970.0,0.43135]
[1762207018778,0.61759618,106980.0,106970.0,0.43135]
[1762207019188,0.61759618,106980.0,106970.0,0.5248511]
[1762207019688,0.72254996,106980.0,106970.0,0.5248511]
[1762207020090,0.72254996,106980.0,106970.0,0.43135]
[1762207021085,0.72254996,106980.0,106970.0,0.04468]
[1762207022986,0.72254996,106980.0,106970.0,0.1381811]
[1762207023187,0.72254996,106980.0,106970.0,0.04468]
[1762207024188,0.61759618,106980.0,106970.0,0.04468]
[1762207025090,0.61759618,106980.0,106970.0,0.1381811]
[1762207025289,0.61759618,106980.0,106970.0,0.1883511]
[1762207025493,0.61759618,106980.0,106970.0,0.09485]
[1762207025792,0.61759618,106980.0,106970.0,0.04468]
[1762207026790,0.61759618,106980.0,106970.0,0.1381812]
[1762207028493,0.25679618,106980.0,106970.0,0.1381812]
[1762207028692,0.25679618,106980.0,106970.0,0.1883512]
[1762207029592,0.27926036,106980.0,106970.0,0.1381812]
[1762207030585,0.74500466,106980.0,106970.0,0.1381812]
[1762207030790,0.74500466,106980.0,106970.0,0.04468]
[1762207032194,0.1518512,106970.0,106960.0,0.07309]
[1762207032385,1.04526928,106970.0,106960.0,0.05016189]
[1762207032696,0.1518686,106950.0,106940.0,0.09802935]
[1762207032894,0.72256668,106950.0,106940.0,0.09802935]
[1762207033394,0.72156668,106950.0,106940.0,0.09802935]
[1762207033889,1.04428668,106950.0,106940.0,0.07626935]
[1762207034090,1.04428668,106950.0,106940.0,0.00518746]
[1762207034091,1.53249873,106950.0,106940.0,0.00518746]
[1762207034288,1.40508668,106950.0,106940.0,0.00518746]
[1762207034593,1.42753548,106950.0,106940.0,0.00518746]
[1762207035185,1.43689042,106950.0,106940.0,0.00518746]
[1762207035489,1.41444162,106950.0,106940.0,0.00518746]
[1762207036696,1.09172162,106950.0,106940.0,0.00518746]
[1762207036898,1.41448162,106950.0,106940.0,0.00518746]
[1762207039801,1.09172162,106950.0,106940.0,0.00518746]
[1762207040003,1.41448162,106950.0,106940.0,0.00518746]
[1762207041098,1.41448162,106950.0,106940.0,0.09871476]
[1762207041498,1.41452162,106950.0,106940.0,0.09871476]
[1762207041706,1.09172162,106950.0,106940.0,0.00518746]
[1762207042004,1.41452162,106950.0,106940.0,0.00518746]
[1762207042600,1.41452162,106950.0,106940.0,0.09871486]
[1762207045403,1.09172162,106950.0,106940.0,0.09871486]
[1762207045607,1.41452162,106950.0,106940.0,0.09871486]